[Event "Titled Tuesday Blitz January 03 Late 2023"]
[White "Andreassen, Lars"]
[Black "Ladan, Nicholas"]
[WhiteFideId "1504878"]
[BlackFideId "30918855"]
[WhiteElo "2168"]
[BlackElo "2228"]
[Result "0-1"]
[Round "02"]
[TimeControl "180+2"]
[Date "2023.01.03"]
[WhiteClock "0:00:28"]
[BlackClock "0:00:08"]

1. d4 {[%clk 0:03:00]}  d5 {[%clk 0:02:59]} 2. c4 {[%clk 0:02:57]}  e6 {[%clk 0:02:59]} 3. Nf3 {[%clk 0:02:56]}  c6 {[%clk 0:02:58]} 4. Nc3 {[%clk 0:02:57]}  Nf6 {[%clk 0:02:58]} 5. Bg5 {[%clk 0:02:56]}  Nbd7 {[%clk 0:02:58]} 6. e3 {[%clk 0:02:54]}  Qa5 {[%clk 0:02:58]} 7. Bxf6 {[%clk 0:02:53]}  Nxf6 {[%clk 0:02:58]} 8. Bd3 {[%clk 0:02:32]}  dxc4 {[%clk 0:02:55]} 9. Bxc4 {[%clk 0:02:31]}  b5 {[%clk 0:02:55]} 10. Bd3 {[%clk 0:02:19]}  Bb4 {[%clk 0:02:22]} 11. O-O {[%clk 0:02:01]}  O-O {[%clk 0:02:19]} 12. Qc2 {[%clk 0:01:58]}  a6 {[%clk 0:02:15]} 13. Rfc1 {[%clk 0:01:58]}  Bb7 {[%clk 0:02:14]} 14. Ne4 {[%clk 0:01:58]}  Nxe4 {[%clk 0:02:04]} 15. Bxe4 {[%clk 0:01:58]}  g6 {[%clk 0:02:03]} 16. Ne5 {[%clk 0:01:58]}  Rac8 {[%clk 0:01:53]} 17. a3 {[%clk 0:01:52]}  Bd6 {[%clk 0:01:51]} 18. Nd7 {[%clk 0:01:52]}  Rfd8 {[%clk 0:01:40]} 19. Nc5 {[%clk 0:01:47]}  Ba8 {[%clk 0:01:32]} 20. b4 {[%clk 0:01:46]}  Qb6 {[%clk 0:01:30]} 21. h4 {[%clk 0:01:44]}  e5 {[%clk 0:01:24]} 22. Rd1 {[%clk 0:00:58]}  exd4 {[%clk 0:01:14]} 23. exd4 {[%clk 0:00:53]}  Re8 {[%clk 0:00:55]} 24. h5 {[%clk 0:00:49]}  Qc7 {[%clk 0:00:40]} 25. hxg6 {[%clk 0:00:48]}  hxg6 {[%clk 0:00:39]} 26. Bxg6 {[%clk 0:00:46]}  fxg6 {[%clk 0:00:23]} 27. Qd2 {[%clk 0:00:46]}  Qh7 {[%clk 0:00:19]} 28. g3 {[%clk 0:00:45]}  Bxc5 {[%clk 0:00:14]} 29. dxc5 {[%clk 0:00:44]}  Bb7 {[%clk 0:00:14]} 30. Qg5 {[%clk 0:00:41]}  Rc7 {[%clk 0:00:13]} 31. Rd6 {[%clk 0:00:40]}  Rg7 {[%clk 0:00:11]} 32. Rad1 {[%clk 0:00:40]}  Qh5 {[%clk 0:00:09]} 33. Qf4 {[%clk 0:00:37]}  Bc8 {[%clk 0:00:08]} 34. Rd8 {[%clk 0:00:36]}  Re7 {[%clk 0:00:07]} 35. Rxe8+ {[%clk 0:00:36]}  Rxe8 {[%clk 0:00:08]} 36. Qh4 {[%clk 0:00:28]}  Qxd1+ {[%clk 0:00:08]} 0-1


[Site "https://www.chess.com"]

[Event "Titled Tuesday Blitz January 03 Late 2023"]
[White "Jovic, Stanoje"]
[Black "Ardila, Oscar Humberto"]
[WhiteFideId "905020"]
[BlackFideId "4404742"]
[WhiteElo "2075"]
[BlackElo "1982"]
[Result "1-0"]
[Round "02"]
[TimeControl "180+2"]
[Date "2023.01.03"]
[WhiteClock "0:00:31"]
[BlackClock "0:00:02"]

1. c4 {[%clk 0:03:00]}  Nf6 {[%clk 0:03:00]} 2. g3 {[%clk 0:03:00]}  g6 {[%clk 0:02:59]} 3. Bg2 {[%clk 0:03:01]}  Bg7 {[%clk 0:03:00]} 4. Nc3 {[%clk 0:03:01]}  O-O {[%clk 0:03:00]} 5. Nf3 {[%clk 0:03:01]}  d6 {[%clk 0:03:01]} 6. O-O {[%clk 0:03:01]}  Nbd7 {[%clk 0:03:02]} 7. d3 {[%clk 0:03:01]}  e5 {[%clk 0:03:01]} 8. Rb1 {[%clk 0:03:01]}  a5 {[%clk 0:03:01]} 9. a3 {[%clk 0:03:00]}  c6 {[%clk 0:03:01]} 10. b4 {[%clk 0:02:59]}  axb4 {[%clk 0:03:01]} 11. axb4 {[%clk 0:03:00]}  Re8 {[%clk 0:03:01]} 12. e4 {[%clk 0:02:59]}  Nf8 {[%clk 0:03:01]} 13. h3 {[%clk 0:02:59]}  Ne6 {[%clk 0:02:59]} 14. Be3 {[%clk 0:02:59]}  Qc7 {[%clk 0:02:58]} 15. Qd2 {[%clk 0:02:58]}  Bd7 {[%clk 0:02:57]} 16. Ra1 {[%clk 0:02:58]}  h5 {[%clk 0:02:54]} 17. Na4 {[%clk 0:02:54]}  Red8 {[%clk 0:02:48]} 18. Bb6 {[%clk 0:02:49]}  Qc8 {[%clk 0:02:48]} 19. Bxd8 {[%clk 0:02:48]}  Qxd8 {[%clk 0:02:49]} 20. Nc3 {[%clk 0:02:46]}  Rxa1 {[%clk 0:02:46]} 21. Rxa1 {[%clk 0:02:46]}  Qb6 {[%clk 0:02:47]} 22. Qb2 {[%clk 0:02:26]}  Bh6 {[%clk 0:02:38]} 23. Qa3 {[%clk 0:02:14]}  Nd4 {[%clk 0:02:30]} 24. Qa5 {[%clk 0:02:10]}  Nxf3+ {[%clk 0:02:12]} 25. Bxf3 {[%clk 0:02:10]}  Qd4 {[%clk 0:02:09]} 26. Qd8+ {[%clk 0:01:59]}  Kg7 {[%clk 0:02:09]} 27. Ra8 {[%clk 0:01:49]}  Be8 {[%clk 0:02:09]} 28. Ne2 {[%clk 0:01:45]}  Qxd3 {[%clk 0:02:07]} 29. Kg2 {[%clk 0:01:43]}  Qxc4 {[%clk 0:02:01]} 30. Qxd6 {[%clk 0:01:34]}  Qe6 {[%clk 0:01:04]} 31. Qxe6 {[%clk 0:01:30]}  fxe6 {[%clk 0:01:04]} 32. Ra7 {[%clk 0:01:28]}  Kf7 {[%clk 0:00:56]} 33. Rxb7+ {[%clk 0:01:28]}  Bd7 {[%clk 0:00:55]} 34. Nc3 {[%clk 0:01:22]}  Bf8 {[%clk 0:00:54]} 35. Na4 {[%clk 0:01:20]}  Ke8 {[%clk 0:00:37]} 36. Nb6 {[%clk 0:01:18]}  Be7 {[%clk 0:00:18]} 37. Nc4 {[%clk 0:01:16]}  Kd8 {[%clk 0:00:14]} 38. Nxe5 {[%clk 0:01:12]}  Be8 {[%clk 0:00:14]} 39. Nc4 {[%clk 0:01:04]}  Nd7 {[%clk 0:00:12]} 40. e5 {[%clk 0:00:57]}  c5 {[%clk 0:00:13]} 41. b5 {[%clk 0:00:53]}  Kc8 {[%clk 0:00:13]} 42. Ra7 {[%clk 0:00:45]}  Kb8 {[%clk 0:00:09]} 43. Ra8+ {[%clk 0:00:43]}  Kc7 {[%clk 0:00:10]} 44. Rxe8 {[%clk 0:00:42]}  Bg5 {[%clk 0:00:09]} 45. Rxe6 {[%clk 0:00:37]}  Bc1 {[%clk 0:00:03]} 46. b6+ {[%clk 0:00:35]}  Kc8 {[%clk 0:00:03]} 47. Rxg6 {[%clk 0:00:34]}  Nb8 {[%clk 0:00:02]} 48. Rg8+ {[%clk 0:00:32]}  Kd7 {[%clk 0:00:02]} 49. Rxb8 {[%clk 0:00:31]} 1-0


[Site "https://www.chess.com"]

[Event "Titled Tuesday Blitz January 03 Late 2023"]
[White "Goncalves, Davi Sulzbacher"]
[Black "Smith, Garrett L"]
[WhiteFideId "2154510"]
[BlackFideId "2024829"]
[WhiteElo "2282"]
[BlackElo "2047"]
[Result "1-0"]
[Round "02"]
[TimeControl "180+2"]
[Date "2023.01.03"]
[WhiteClock "0:00:15"]
[BlackClock "0:00:29"]

1. Nf3 {[%clk 0:03:00]}  c5 {[%clk 0:02:59]} 2. g3 {[%clk 0:03:01]}  Nc6 {[%clk 0:02:58]} 3. Bg2 {[%clk 0:03:02]}  e5 {[%clk 0:02:58]} 4. c4 {[%clk 0:03:02]}  Nf6 {[%clk 0:02:58]} 5. Nc3 {[%clk 0:03:02]}  d6 {[%clk 0:02:57]} 6. O-O {[%clk 0:03:00]}  Be6 {[%clk 0:02:58]} 7. d3 {[%clk 0:02:58]}  h6 {[%clk 0:02:57]} 8. Ne1 {[%clk 0:02:54]}  Be7 {[%clk 0:02:57]} 9. Nd5 {[%clk 0:02:49]}  O-O {[%clk 0:02:53]} 10. Nc2 {[%clk 0:02:48]}  Bxd5 {[%clk 0:02:49]} 11. cxd5 {[%clk 0:02:47]}  Nd4 {[%clk 0:02:47]} 12. e3 {[%clk 0:02:27]}  Nxc2 {[%clk 0:02:34]} 13. Qxc2 {[%clk 0:02:28]}  b5 {[%clk 0:02:34]} 14. a4 {[%clk 0:02:26]}  a6 {[%clk 0:02:33]} 15. Bd2 {[%clk 0:02:23]}  Qb6 {[%clk 0:02:26]} 16. b4 {[%clk 0:02:14]}  cxb4 {[%clk 0:02:19]} 17. a5 {[%clk 0:01:52]}  Qb7 {[%clk 0:02:15]} 18. Qb3 {[%clk 0:01:31]}  Nd7 {[%clk 0:02:07]} 19. Bxb4 {[%clk 0:01:26]}  Rfc8 {[%clk 0:02:05]} 20. Rfc1 {[%clk 0:01:25]}  Rxc1+ {[%clk 0:01:59]} 21. Rxc1 {[%clk 0:01:26]}  Rc8 {[%clk 0:01:59]} 22. Rc6 {[%clk 0:01:24]}  Nb8 {[%clk 0:01:45]} 23. Bxd6 {[%clk 0:00:58]}  Bxd6 {[%clk 0:01:31]} 24. Rxd6 {[%clk 0:00:57]}  Rc1+ {[%clk 0:01:31]} 25. Bf1 {[%clk 0:00:57]}  Qc7 {[%clk 0:01:24]} 26. Qa3 {[%clk 0:00:52]}  Nd7 {[%clk 0:01:08]} 27. Rxd7 {[%clk 0:00:51]}  Rxf1+ {[%clk 0:01:07]} 28. Kxf1 {[%clk 0:00:51]}  Qxd7 {[%clk 0:01:07]} 29. Qc5 {[%clk 0:00:43]}  Qh3+ {[%clk 0:00:58]} 30. Kg1 {[%clk 0:00:42]}  Qg4 {[%clk 0:00:59]} 31. d6 {[%clk 0:00:39]}  Qd1+ {[%clk 0:00:58]} 32. Kg2 {[%clk 0:00:39]}  Qxd3 {[%clk 0:00:58]} 33. Qc6 {[%clk 0:00:28]}  Kh7 {[%clk 0:00:42]} 34. d7 {[%clk 0:00:25]}  e4 {[%clk 0:00:29]} 35. Qc8 {[%clk 0:00:15]} 1-0


[Site "https://www.chess.com"]

[Event "Titled Tuesday Blitz January 03 Late 2023"]
[White "Nissinen, Niilo Man"]
[Black "Manukian, Artak"]
[WhiteFideId "30950767"]
[BlackFideId "13301373"]
[WhiteElo "1958"]
[BlackElo "2196"]
[Result "1-0"]
[Round "02"]
[TimeControl "180+2"]
[Date "2023.01.03"]
[WhiteClock "0:00:03"]
[BlackClock "0:00:10"]

1. e4 {[%clk 0:03:00]}  c6 {[%clk 0:02:56]} 2. d4 {[%clk 0:03:00]}  d5 {[%clk 0:02:57]} 3. Nc3 {[%clk 0:03:01]}  dxe4 {[%clk 0:02:57]} 4. Nxe4 {[%clk 0:03:02]}  Nf6 {[%clk 0:02:57]} 5. Nxf6+ {[%clk 0:03:02]}  exf6 {[%clk 0:02:58]} 6. c3 {[%clk 0:03:02]}  Bd6 {[%clk 0:02:59]} 7. Bd3 {[%clk 0:03:02]}  Na6 {[%clk 0:03:00]} 8. Qc2 {[%clk 0:03:01]}  Nc7 {[%clk 0:03:00]} 9. Ne2 {[%clk 0:03:02]}  Nd5 {[%clk 0:03:00]} 10. O-O {[%clk 0:03:00]}  h5 {[%clk 0:02:57]} 11. a3 {[%clk 0:02:59]}  b5 {[%clk 0:02:56]} 12. c4 {[%clk 0:02:47]}  bxc4 {[%clk 0:02:56]} 13. Bxc4 {[%clk 0:02:46]}  g6 {[%clk 0:02:48]} 14. Bxd5 {[%clk 0:02:45]}  cxd5 {[%clk 0:02:42]} 15. Qc6+ {[%clk 0:02:43]}  Qd7 {[%clk 0:02:27]} 16. Qxa8 {[%clk 0:02:43]}  O-O {[%clk 0:02:12]} 17. Nc3 {[%clk 0:02:29]}  Rd8 {[%clk 0:01:57]} 18. Qxd5 {[%clk 0:02:14]}  Bb7 {[%clk 0:01:50]} 19. Qb5 {[%clk 0:02:03]}  Qc7 {[%clk 0:01:50]} 20. h3 {[%clk 0:01:49]}  Qc8 {[%clk 0:01:44]} 21. Be3 {[%clk 0:01:32]}  Ba6 {[%clk 0:01:40]} 22. Qa5 {[%clk 0:01:30]}  Bxf1 {[%clk 0:01:31]} 23. Rxf1 {[%clk 0:01:31]}  Rd7 {[%clk 0:01:23]} 24. Ne4 {[%clk 0:01:26]}  Be7 {[%clk 0:01:18]} 25. Rc1 {[%clk 0:01:19]}  Qb8 {[%clk 0:01:18]} 26. Qc3 {[%clk 0:01:12]}  Kg7 {[%clk 0:01:14]} 27. b4 {[%clk 0:00:52]}  Qe8 {[%clk 0:01:10]} 28. Nc5 {[%clk 0:00:51]}  Rd5 {[%clk 0:01:06]} 29. Qc4 {[%clk 0:00:51]}  Qa8 {[%clk 0:00:59]} 30. Na6 {[%clk 0:00:47]}  Rd7 {[%clk 0:00:55]} 31. Rd1 {[%clk 0:00:43]}  Bd6 {[%clk 0:00:43]} 32. d5 {[%clk 0:00:39]}  Qe8 {[%clk 0:00:37]} 33. Bd4 {[%clk 0:00:30]}  Re7 {[%clk 0:00:33]} 34. Qc3 {[%clk 0:00:26]}  Kh7 {[%clk 0:00:27]} 35. Nc5 {[%clk 0:00:21]}  f5 {[%clk 0:00:23]} 36. a4 {[%clk 0:00:17]}  Re2 {[%clk 0:00:19]} 37. Be3 {[%clk 0:00:16]}  f4 {[%clk 0:00:19]} 38. Qd3 {[%clk 0:00:14]}  f3 {[%clk 0:00:15]} 39. g3 {[%clk 0:00:10]}  Bxg3 {[%clk 0:00:14]} 40. fxg3 {[%clk 0:00:07]}  Rg2+ {[%clk 0:00:15]} 41. Kf1 {[%clk 0:00:05]}  Qc8 {[%clk 0:00:13]} 42. g4 {[%clk 0:00:04]}  hxg4 {[%clk 0:00:11]} 43. hxg4 {[%clk 0:00:02]}  Qxg4 {[%clk 0:00:11]} 44. Ne4 {[%clk 0:00:02]}  Qh3 {[%clk 0:00:10]} 45. Nf2 {[%clk 0:00:03]}  Qh2 {[%clk 0:00:10]} 46. Ke1 {[%clk 0:00:02]}  Qg1+ {[%clk 0:00:10]} 47. Qf1 {[%clk 0:00:02]}  Rxf2 {[%clk 0:00:11]} 48. Qxg1 {[%clk 0:00:02]}  Re2+ {[%clk 0:00:11]} 49. Kf1 {[%clk 0:00:02]}  Rc2 {[%clk 0:00:10]} 50. Qh1+ {[%clk 0:00:02]}  Kg7 {[%clk 0:00:10]} 51. Qxf3 {[%clk 0:00:03]}  f6 {[%clk 0:00:10]} 52. Bd4 {[%clk 0:00:03]}  Rc4 {[%clk 0:00:10]} 53. Qxf6+ {[%clk 0:00:04]}  Kh6 {[%clk 0:00:10]} 54. Qh4# {[%clk 0:00:03]} 1-0


[Site "https://www.chess.com"]

[Event "Titled Tuesday Blitz January 03 Late 2023"]
[White "Przybylski, Wojciech"]
[Black "Harish, Neeraj"]
[WhiteFideId "1117599"]
[BlackFideId "30958130"]
[WhiteElo "2321"]
[BlackElo "2232"]
[Result "1-0"]
[Round "02"]
[TimeControl "180+2"]
[Date "2023.01.03"]
[WhiteClock "0:00:36"]
[BlackClock "0:00:03"]

1. e4 {[%clk 0:03:00]}  c5 {[%clk 0:02:57]} 2. Nf3 {[%clk 0:03:00]}  Nc6 {[%clk 0:02:57]} 3. d4 {[%clk 0:02:59]}  cxd4 {[%clk 0:02:58]} 4. Nxd4 {[%clk 0:02:59]}  Nf6 {[%clk 0:02:58]} 5. Nc3 {[%clk 0:02:59]}  e5 {[%clk 0:02:57]} 6. Ndb5 {[%clk 0:02:59]}  d6 {[%clk 0:02:56]} 7. Bg5 {[%clk 0:02:59]}  a6 {[%clk 0:02:57]} 8. Na3 {[%clk 0:02:59]}  b5 {[%clk 0:02:57]} 9. Nd5 {[%clk 0:02:59]}  Be7 {[%clk 0:02:57]} 10. Bxf6 {[%clk 0:02:58]}  Bxf6 {[%clk 0:02:58]} 11. c3 {[%clk 0:02:59]}  Rb8 {[%clk 0:02:47]} 12. Nc2 {[%clk 0:02:57]}  O-O {[%clk 0:02:43]} 13. g3 {[%clk 0:02:55]}  Be6 {[%clk 0:02:35]} 14. Bg2 {[%clk 0:02:55]}  Bg5 {[%clk 0:02:35]} 15. O-O {[%clk 0:02:54]}  Ne7 {[%clk 0:02:28]} 16. Ncb4 {[%clk 0:02:45]}  Bxd5 {[%clk 0:01:18]} 17. Nxd5 {[%clk 0:02:41]}  Rc8 {[%clk 0:01:09]} 18. a4 {[%clk 0:02:38]}  bxa4 {[%clk 0:01:07]} 19. Rxa4 {[%clk 0:02:35]}  a5 {[%clk 0:01:07]} 20. h4 {[%clk 0:02:30]}  Bh6 {[%clk 0:01:04]} 21. Nxe7+ {[%clk 0:02:30]}  Qxe7 {[%clk 0:01:03]} 22. Rxa5 {[%clk 0:02:30]}  Rb8 {[%clk 0:01:02]} 23. Rd5 {[%clk 0:02:16]}  Rxb2 {[%clk 0:01:01]} 24. Rxd6 {[%clk 0:02:16]}  g6 {[%clk 0:00:52]} 25. Qd5 {[%clk 0:02:12]}  Rd2 {[%clk 0:00:46]} 26. Qxd2 {[%clk 0:01:50]}  Bxd2 {[%clk 0:00:45]} 27. Rxd2 {[%clk 0:01:51]}  Re8 {[%clk 0:00:45]} 28. c4 {[%clk 0:01:38]}  Rc8 {[%clk 0:00:44]} 29. Rc1 {[%clk 0:01:36]}  Rc5 {[%clk 0:00:36]} 30. Bh3 {[%clk 0:01:20]}  Qc7 {[%clk 0:00:28]} 31. Bf1 {[%clk 0:01:17]}  Qa5 {[%clk 0:00:18]} 32. Rcd1 {[%clk 0:01:16]}  Kg7 {[%clk 0:00:15]} 33. Rd7 {[%clk 0:01:14]}  Qb4 {[%clk 0:00:13]} 34. Ra7 {[%clk 0:01:04]}  Rc8 {[%clk 0:00:12]} 35. Rdd7 {[%clk 0:01:01]}  Rf8 {[%clk 0:00:12]} 36. Re7 {[%clk 0:00:59]}  Qc5 {[%clk 0:00:08]} 37. Rad7 {[%clk 0:00:56]}  Qc6 {[%clk 0:00:05]} 38. Bd3 {[%clk 0:00:54]}  Qc5 {[%clk 0:00:03]} 39. Rc7 {[%clk 0:00:52]}  Qd4 {[%clk 0:00:03]} 40. Red7 {[%clk 0:00:53]}  Qa1+ {[%clk 0:00:02]} 41. Kg2 {[%clk 0:00:52]}  Qc3 {[%clk 0:00:02]} 42. c5 {[%clk 0:00:51]}  Qb3 {[%clk 0:00:03]} 43. c6 {[%clk 0:00:45]}  Kf6 {[%clk 0:00:03]} 44. Rd6+ {[%clk 0:00:44]}  Kg7 {[%clk 0:00:03]} 45. Rd5 {[%clk 0:00:44]}  Re8 {[%clk 0:00:02]} 46. Rb7 {[%clk 0:00:36]}  Rc8 {[%clk 0:00:02]} 47. Rxb3 {[%clk 0:00:36]}  Rxc6 {[%clk 0:00:03]} 48. Rb7 {[%clk 0:00:36]} 1-0


[Site "https://www.chess.com"]

[Event "Titled Tuesday Blitz January 03 Late 2023"]
[White "Kleinman, Michael"]
[Black "Marcolino, Daniel Mattos"]
[WhiteFideId "2609479"]
[BlackFideId "2106841"]
[WhiteElo "2387"]
[BlackElo "2006"]
[Result "1-0"]
[Round "02"]
[TimeControl "180+2"]
[Date "2023.01.03"]
[WhiteClock "0:00:55"]
[BlackClock "0:00:54"]

1. Nf3 {[%clk 0:03:00]}  d5 {[%clk 0:02:59]} 2. g3 {[%clk 0:03:00]}  c6 {[%clk 0:02:58]} 3. Bg2 {[%clk 0:03:00]}  Nf6 {[%clk 0:02:58]} 4. O-O {[%clk 0:03:01]}  Bg4 {[%clk 0:02:58]} 5. b3 {[%clk 0:03:01]}  Nbd7 {[%clk 0:02:59]} 6. Bb2 {[%clk 0:03:02]}  e6 {[%clk 0:02:59]} 7. c4 {[%clk 0:03:00]}  Be7 {[%clk 0:02:57]} 8. d3 {[%clk 0:02:59]}  O-O {[%clk 0:02:56]} 9. Nbd2 {[%clk 0:03:00]}  Qc7 {[%clk 0:02:52]} 10. a3 {[%clk 0:02:59]}  Rfd8 {[%clk 0:02:41]} 11. Rc1 {[%clk 0:02:58]}  dxc4 {[%clk 0:02:40]} 12. Rxc4 {[%clk 0:02:50]}  Bh5 {[%clk 0:02:26]} 13. b4 {[%clk 0:02:49]}  a6 {[%clk 0:02:24]} 14. Qb3 {[%clk 0:02:30]}  Nb6 {[%clk 0:02:08]} 15. Rc2 {[%clk 0:02:29]}  Nbd5 {[%clk 0:01:59]} 16. Rfc1 {[%clk 0:02:22]}  Rac8 {[%clk 0:01:54]} 17. Nc4 {[%clk 0:02:10]}  Bxf3 {[%clk 0:01:46]} 18. Bxf3 {[%clk 0:02:10]}  Qb8 {[%clk 0:01:31]} 19. e4 {[%clk 0:02:05]}  Nc7 {[%clk 0:01:26]} 20. Nb6 {[%clk 0:02:04]}  Nb5 {[%clk 0:01:25]} 21. Nxc8 {[%clk 0:01:45]}  Qxc8 {[%clk 0:01:22]} 22. Rc4 {[%clk 0:01:42]}  Nd7 {[%clk 0:01:21]} 23. a4 {[%clk 0:01:41]}  Nc7 {[%clk 0:01:20]} 24. b5 {[%clk 0:01:38]}  Nb8 {[%clk 0:01:03]} 25. e5 {[%clk 0:01:22]}  Qd7 {[%clk 0:01:03]} 26. bxc6 {[%clk 0:01:21]}  Nxc6 {[%clk 0:01:03]} 27. Qxb7 {[%clk 0:01:14]}  Bg5 {[%clk 0:00:56]} 28. Rxc6 {[%clk 0:01:00]}  Bxc1 {[%clk 0:00:54]} 29. Rxc7 {[%clk 0:00:55]} 1-0


[Site "https://www.chess.com"]

[Event "Titled Tuesday Blitz January 03 Late 2023"]
[White "Quinones Garcia, Santiago"]
[Black "Guevara Sanchez, Erick Marvin"]
[WhiteFideId "4408497"]
[BlackFideId "6700136"]
[WhiteElo "2248"]
[BlackElo "2073"]
[Result "1-0"]
[Round "02"]
[TimeControl "180+2"]
[Date "2023.01.03"]
[WhiteClock "0:01:27"]
[BlackClock "0:00:27"]

1. d4 {[%clk 0:03:00]}  Nf6 {[%clk 0:02:59]} 2. c4 {[%clk 0:03:00]}  e6 {[%clk 0:02:59]} 3. Nc3 {[%clk 0:03:00]}  Bb4 {[%clk 0:02:58]} 4. Qc2 {[%clk 0:03:01]}  b6 {[%clk 0:02:55]} 5. a3 {[%clk 0:03:01]}  Bxc3+ {[%clk 0:02:55]} 6. Qxc3 {[%clk 0:03:02]}  O-O {[%clk 0:02:54]} 7. Nf3 {[%clk 0:03:02]}  Bb7 {[%clk 0:02:53]} 8. e3 {[%clk 0:03:02]}  c5 {[%clk 0:02:50]} 9. b4 {[%clk 0:03:02]}  cxd4 {[%clk 0:02:46]} 10. Nxd4 {[%clk 0:02:58]}  Ne4 {[%clk 0:02:43]} 11. Qc2 {[%clk 0:02:56]}  d6 {[%clk 0:02:39]} 12. Bd3 {[%clk 0:02:56]}  f5 {[%clk 0:02:35]} 13. Bb2 {[%clk 0:02:52]}  Qe7 {[%clk 0:02:30]} 14. O-O {[%clk 0:02:49]}  Nd7 {[%clk 0:02:27]} 15. f3 {[%clk 0:02:47]}  Nef6 {[%clk 0:02:26]} 16. Rad1 {[%clk 0:02:43]}  Ne5 {[%clk 0:02:21]} 17. Be2 {[%clk 0:02:41]}  Rfc8 {[%clk 0:02:03]} 18. Qb3 {[%clk 0:02:41]}  a6 {[%clk 0:01:53]} 19. Rd2 {[%clk 0:02:31]}  Kh8 {[%clk 0:01:40]} 20. Rfd1 {[%clk 0:02:31]}  Rd8 {[%clk 0:01:38]} 21. a4 {[%clk 0:02:17]}  Rac8 {[%clk 0:01:37]} 22. Ra1 {[%clk 0:02:13]}  Rc7 {[%clk 0:01:21]} 23. a5 {[%clk 0:02:13]}  bxa5 {[%clk 0:01:19]} 24. Rxa5 {[%clk 0:02:12]}  Nc6 {[%clk 0:01:19]} 25. Nxc6 {[%clk 0:02:10]}  Rxc6 {[%clk 0:01:20]} 26. Ra1 {[%clk 0:01:54]}  Rc7 {[%clk 0:01:17]} 27. Rad1 {[%clk 0:01:54]}  Rcd7 {[%clk 0:01:17]} 28. Qa4 {[%clk 0:01:46]}  h6 {[%clk 0:01:15]} 29. c5 {[%clk 0:01:42]}  dxc5 {[%clk 0:01:10]} 30. Bxf6 {[%clk 0:01:41]}  Rxd2 {[%clk 0:00:50]} 31. Bxe7 {[%clk 0:01:40]}  Rxd1+ {[%clk 0:00:48]} 32. Bxd1 {[%clk 0:01:40]}  Rd3 {[%clk 0:00:46]} 33. Bxc5 {[%clk 0:01:38]}  g5 {[%clk 0:00:39]} 34. Qe8+ {[%clk 0:01:36]}  Kg7 {[%clk 0:00:38]} 35. Qf8+ {[%clk 0:01:34]}  Kg6 {[%clk 0:00:38]} 36. Bc2 {[%clk 0:01:32]}  Rd2 {[%clk 0:00:36]} 37. Bb3 {[%clk 0:01:29]}  g4 {[%clk 0:00:28]} 38. Bxe6 {[%clk 0:01:27]}  gxf3 {[%clk 0:00:27]} 39. Qxf5+ {[%clk 0:01:26]}  Kg7 {[%clk 0:00:27]} 40. Qf7+ {[%clk 0:01:27]}  Kh8 {[%clk 0:00:27]} 41. Qg8# {[%clk 0:01:27]} 1-0


[Site "https://www.chess.com"]

[Event "Titled Tuesday Blitz January 03 Late 2023"]
[White "Curtis, John"]
[Black "Gasparyan, David"]
[WhiteFideId "3200256"]
[BlackFideId "13311980"]
[WhiteElo "2292"]
[BlackElo "2142"]
[Result "0-1"]
[Round "02"]
[TimeControl "180+2"]
[Date "2023.01.03"]
[WhiteClock "0:00:01"]
[BlackClock "0:00:28"]

1. e4 {[%clk 0:02:59]}  c5 {[%clk 0:03:00]} 2. Nf3 {[%clk 0:02:58]}  g6 {[%clk 0:02:57]} 3. d4 {[%clk 0:02:56]}  cxd4 {[%clk 0:02:57]} 4. Nxd4 {[%clk 0:02:56]}  Bg7 {[%clk 0:02:57]} 5. Bc4 {[%clk 0:02:52]}  Nc6 {[%clk 0:02:55]} 6. Ne2 {[%clk 0:02:39]}  Nf6 {[%clk 0:02:54]} 7. Nbc3 {[%clk 0:02:38]}  O-O {[%clk 0:02:54]} 8. O-O {[%clk 0:02:36]}  d6 {[%clk 0:02:54]} 9. f3 {[%clk 0:02:31]}  Qb6+ {[%clk 0:02:51]} 10. Kh1 {[%clk 0:02:30]}  Bd7 {[%clk 0:02:44]} 11. Nd5 {[%clk 0:02:27]}  Nxd5 {[%clk 0:02:44]} 12. Bxd5 {[%clk 0:02:27]}  Rac8 {[%clk 0:02:40]} 13. c3 {[%clk 0:02:25]}  Ne5 {[%clk 0:02:31]} 14. Bb3 {[%clk 0:02:14]}  Bb5 {[%clk 0:02:23]} 15. Bc2 {[%clk 0:01:56]}  Nc4 {[%clk 0:02:09]} 16. Nd4 {[%clk 0:01:51]}  Ba6 {[%clk 0:02:06]} 17. Bb3 {[%clk 0:01:39]}  Ne5 {[%clk 0:01:59]} 18. Re1 {[%clk 0:01:32]}  Nd3 {[%clk 0:01:58]} 19. Re2 {[%clk 0:01:20]}  Nxc1 {[%clk 0:01:50]} 20. Rxc1 {[%clk 0:01:19]}  Bxe2 {[%clk 0:01:50]} 21. Nxe2 {[%clk 0:01:19]}  Qe3 {[%clk 0:01:41]} 22. Qf1 {[%clk 0:01:12]}  b5 {[%clk 0:01:35]} 23. Rd1 {[%clk 0:01:08]}  Qb6 {[%clk 0:01:31]} 24. Nf4 {[%clk 0:01:07]}  e6 {[%clk 0:01:28]} 25. Qd3 {[%clk 0:01:02]}  Rfd8 {[%clk 0:01:22]} 26. g3 {[%clk 0:00:39]}  a5 {[%clk 0:01:14]} 27. a3 {[%clk 0:00:25]}  b4 {[%clk 0:01:09]} 28. axb4 {[%clk 0:00:25]}  axb4 {[%clk 0:01:09]} 29. Nxe6 {[%clk 0:00:24]}  fxe6 {[%clk 0:01:08]} 30. Bxe6+ {[%clk 0:00:24]}  Kh8 {[%clk 0:01:09]} 31. Bxc8 {[%clk 0:00:24]}  Rxc8 {[%clk 0:01:09]} 32. Qxd6 {[%clk 0:00:19]}  Qf2 {[%clk 0:00:52]} 33. Qd3 {[%clk 0:00:14]}  bxc3 {[%clk 0:00:47]} 34. bxc3 {[%clk 0:00:14]}  h6 {[%clk 0:00:43]} 35. e5 {[%clk 0:00:09]}  Bxe5 {[%clk 0:00:40]} 36. Rf1 {[%clk 0:00:07]}  Qb6 {[%clk 0:00:39]} 37. Qd7 {[%clk 0:00:04]}  Rd8 {[%clk 0:00:37]} 38. Qf7 {[%clk 0:00:04]}  Bxc3 {[%clk 0:00:33]} 39. Kg2 {[%clk 0:00:01]}  Bg7 {[%clk 0:00:30]} 40. Rf2 {[%clk 0:00:01]}  Rf8 {[%clk 0:00:28]} 0-1


[Site "https://www.chess.com"]